bitfinex-derivatives/quotes_BTCF0:USTF0_20210108
["timestamp","ask_amount","ask_price","bid_price","bid_amount"]
[1610077375489,0.09064,38098.0,38095.0,0.02040716]
[1610077375690,0.09064,38098.0,38091.0,0.13632608]
[1610077375691,0.09064,38098.0,38092.0,0.02040653]
[1610077375891,0.09064,38098.0,38096.0,0.02040538]
[1610077376090,0.09064,38098.0,38093.0,0.02040549]
[1610077376490,0.08427,38110.0,38092.0,0.02040516]
[1610077376691,0.4764,38112.0,38094.0,0.02040461]
[1610077376891,0.4764,38112.0,38093.0,0.02040508]
[1610077377092,0.13632608,38094.0,38093.0,0.02040508]
[1610077377295,0.13632608,38094.0,38092.0,0.02040545]
[1610077377493,0.13632608,38094.0,38093.0,0.02040561]
[1610077378093,0.13632608,38094.0,38092.0,0.02040464]
[1610077378295,0.13632608,38094.0,38093.0,0.02040442]
[1610077378894,0.13632608,38094.0,38090.0,0.02040531]
[1610077379096,0.13632608,38094.0,38069.0,0.04574307]
[1610077379295,0.13632608,38094.0,38091.0,0.02040759]
[1610077379495,0.4376,38093.0,38069.0,0.11981529]
[1610077379696,0.13632608,38094.0,38069.0,0.11981529]
[1610077379902,4.3582,38088.0,38069.0,0.14022489]
[1610077380097,4.45212,38088.0,38067.0,0.02041046]
[1610077380296,4.45212,38088.0,38070.0,0.02041142]
[1610077380697,4.45212,38088.0,38057.0,0.02041264]
[1610077380898,4.45212,38088.0,38071.0,0.02041321]
[1610077381098,0.13632608,38072.0,38058.0,0.02041363]
[1610077381498,3.48382608,38072.0,38049.0,0.11983851]
[1610077381698,3.48382608,38072.0,38059.0,0.02180552]
[1610077381898,3.48382608,38072.0,38050.0,0.02180675]
[1610077382098,0.13632608,38072.0,38050.0,0.02180675]
[1610077382299,0.13632608,38072.0,38060.0,0.02180658]
[1610077382501,0.13632608,38072.0,38051.0,0.02180669]
[1610077382698,0.13632608,38072.0,38061.0,0.02180695]
[1610077382998,0.13632608,38062.0,38053.0,0.13632608]
[1610077383599,0.13632608,38062.0,38054.0,0.02180585]
[1610077383997,0.13632608,38062.0,38054.0,0.02153554]
[1610077384198,0.08495,38063.0,38054.0,0.02153554]
[1610077384398,0.1569,38072.0,38055.0,0.00027029]
[1610077384601,0.1569,38072.0,38054.0,0.02180581]
[1610077384801,0.1569,38072.0,38056.0,0.00027027]
[1610077385004,0.1569,38072.0,38071.0,0.13632608]
[1610077385402,0.1569,38072.0,38071.0,0.27503585]
[1610077386405,0.1569,38072.0,38071.0,0.27503347]
[1610077386806,0.1569,38111.0,38071.0,0.27503347]
[1610077387006,0.13632608,38091.0,38086.0,0.13632608]
[1610077387407,0.13632608,38091.0,38086.0,0.15812074]
[1610077387809,0.4684,38087.0,38086.0,0.15812074]
[1610077388010,0.1569,38111.0,38086.0,0.15812074]
[1610077388210,0.1569,38111.0,38086.0,0.15812381]
[1610077388411,0.1569,38111.0,38088.0,3.0857]
[1610077388810,0.3195,38116.0,38089.0,0.14521103]
[1610077389010,0.3195,38116.0,38111.0,0.13632608]
[1610077389611,0.3195,38116.0,38098.0,0.11605]
[1610077389612,0.3195,38116.0,38112.0,0.02179674]
[1610077390113,0.3195,38116.0,38099.0,0.02179653]
[1610077390312,0.3195,38116.0,38113.0,0.02179646]
[1610077390611,0.3195,38116.0,38099.0,0.02179661]
[1610077391012,0.3195,38116.0,38114.0,0.02179503]
[1610077391213,0.3195,38116.0,38109.0,0.13632608]
[1610077391413,0.3195,38116.0,38115.0,0.02179493]
[1610077391614,0.3195,38116.0,38110.0,0.02179534]
[1610077393015,0.13632608,38111.0,38108.0,0.13632608]
[1610077393416,0.13632608,38111.0,38098.0,0.11605]
[1610077393616,0.13632608,38111.0,38109.0,0.02179522]
[1610077393816,0.13632608,38111.0,38099.0,0.02179564]
[1610077394016,0.13632608,38111.0,38082.0,3.7763]
[1610077394017,0.13632608,38111.0,38110.0,0.02179634]
[1610077394217,0.13632608,38111.0,38083.0,0.12341241]
[1610077394417,0.25548608,38111.0,38083.0,0.12341241]
[1610077394616,0.25548608,38111.0,38086.0,0.02179775]
[1610077394818,0.25548608,38111.0,38083.0,0.14521248]
[1610077395119,0.13632608,38084.0,38083.0,0.12341241]
[1610077395721,0.13632608,38084.0,38081.0,0.02180598]
[1610077395919,0.13632608,38084.0,38083.0,0.02180636]
[1610077396119,0.13632608,38084.0,38055.0,0.12347003]
[1610077396120,0.49472847,38072.0,38057.0,3.3798]
[1610077396620,0.49472847,38072.0,38071.0,0.0218053]
[1610077397022,0.49472847,38072.0,38071.0,0.15813138]
[1610077397221,0.49472847,38072.0,38071.0,0.13632608]
[1610077397421,0.49472847,38072.0,38071.0,0.15813183]
[1610077398925,0.49472847,38072.0,38071.0,0.76463183]
[1610077399325,0.49472847,38072.0,38071.0,0.8120916]
[1610077399926,0.49472847,38072.0,38071.0,0.2055916]
[1610077400332,0.49472847,38072.0,38071.0,0.15813183]
[1610077401431,0.49472847,38072.0,38071.0,0.13632608]
[1610077401630,0.49472847,38072.0,38071.0,0.15812793]
[1610077411046,0.49472847,38072.0,38071.0,0.02180185]
[1610077411246,0.63105455,38072.0,38071.0,0.02180185]
[1610077411446,0.63105455,38072.0,38066.0,0.13632608]
[1610077411648,0.63105455,38072.0,38071.0,0.02180325]
[1610077411846,0.63105455,38072.0,38067.0,0.02180555]
[1610077412246,0.63105455,38072.0,38071.0,0.02180711]
[1610077412446,0.63105455,38072.0,38068.0,0.02180849]
[1610077412646,0.63105455,38072.0,38071.0,0.00027029]
[1610077412846,0.63105455,38072.0,38071.0,0.02180822]
[1610077413046,0.63105455,38072.0,38069.0,0.00027029]
[1610077413248,0.63105455,38072.0,38071.0,0.15813373]
[1610077413447,0.63105455,38072.0,38071.0,0.13632608]
[1610077413847,0.63105455,38072.0,38071.0,0.1581333]
[1610077414848,0.63105455,38072.0,38071.0,0.02180722]
[1610077415250,0.63105455,38072.0,38065.0,0.02180797]
[1610077417253,0.63105455,38072.0,38071.0,0.13632608]
[1610077417656,0.63105455,38072.0,38071.0,0.15813302]
[1610077421962,0.49472847,38072.0,38071.0,0.15813302]
[1610077424565,0.17345027,38072.0,38071.0,0.15813302]
[1610077437281,0.17345027,38072.0,38071.0,0.02180694]
[1610077437681,0.17345027,38072.0,38068.0,0.02180863]
[1610077437882,0.17345027,38072.0,38071.0,0.02180756]
[1610077438086,0.17345027,38072.0,38069.0,0.02180756]
[1610077438282,0.17345027,38072.0,38069.0,3.22950756]
[1610077438483,0.17345027,38072.0,38069.0,3.2077]
[1610077438686,0.17345027,38072.0,38070.0,0.14527012]
[1610077439184,0.17345027,38072.0,38071.0,0.13632608]
[1610077439784,0.17345027,38072.0,38071.0,0.15812961]
[1610077441286,0.30977635,38072.0,38071.0,0.15812961]
[1610077447996,4.24287635,38072.0,38063.0,0.13705]
[1610077448196,0.30977635,38072.0,38056.0,0.12345384]
[1610077448395,3.9037,38055.0,38047.0,0.12790093]
[1610077448996,3.9037,38055.0,38054.0,0.02351195]
[1610077449196,3.9037,38055.0,38041.0,0.0859]
[1610077449396,4.04002608,38055.0,38054.0,0.02351399]
[1610077449795,4.04002608,38055.0,38044.0,0.13632608]
[1610077449995,4.04002608,38055.0,38054.0,0.02351616]
[1610077450196,4.04002608,38055.0,38045.0,0.02351603]
[1610077450596,4.04002608,38055.0,38044.0,0.13632608]
[1610077450597,4.04002608,38055.0,38054.0,0.02351643]
[1610077450796,4.04002608,38055.0,38046.0,0.0235169]
[1610077450996,4.04002608,38055.0,38054.0,0.0002736]
[1610077451196,4.04002608,38055.0,38047.0,0.0002736]
[1610077451396,0.59882608,38048.0,38047.0,0.0002736]
[1610077451596,0.59882608,38048.0,38045.0,0.02351724]
[1610077451800,0.59882608,38048.0,38047.0,0.00027365]
[1610077451997,0.59882608,38048.0,38046.0,0.00027368]
[1610077452398,0.59882608,38048.0,38047.0,0.00027368]
[1610077452799,0.59882608,38048.0,38046.0,0.02352275]
[1610077453199,0.59882608,38048.0,38047.0,0.00027368]
[1610077453400,0.59882608,38048.0,38039.0,0.13632608]
[1610077453601,0.59882608,38048.0,38047.0,0.0002737]
[1610077454204,0.59882608,38048.0,38047.0,0.00054739]
[1610077454404,0.59882608,38048.0,38047.0,0.0002737]
[1610077454605,0.59882608,38048.0,38047.0,0.00054739]
[1610077454804,0.59882608,38048.0,38047.0,0.0002737]
[1610077455403,0.59882608,38048.0,38047.0,0.0005474]
[1610077455804,0.59882608,38048.0,38047.0,0.0002737]
[1610077456005,0.59882608,38048.0,38047.0,0.0005474]
[1610077456204,0.59882608,38048.0,38047.0,0.0002737]
[1610077456505,0.59882608,38048.0,38047.0,0.0005474]
[1610077456704,0.59882608,38048.0,38047.0,0.0002737]
[1610077457106,0.59882608,38048.0,38047.0,0.0005474]
[1610077457304,0.59882608,38048.0,38047.0,0.0002737]
[1610077457504,0.59882608,38048.0,38047.0,0.0005474]
[1610077457905,0.59882608,38048.0,38047.0,0.0002737]
[1610077458105,0.59882608,38048.0,38047.0,0.0005474]
[1610077458305,0.59882608,38048.0,38047.0,0.0002737]
[1610077458705,0.59882608,38048.0,38047.0,0.0005474]
[1610077458905,0.13632608,38048.0,38047.0,0.0005474]
[1610077461107,0.13045,38061.0,38047.0,0.0005474]
[1610077461306,0.13632608,38054.0,38053.0,0.13632608]
[1610077461507,0.1569,38068.0,38053.0,0.13632608]
[1610077461706,0.1569,38068.0,38053.0,0.15984759]
[1610077462108,0.1569,38068.0,38054.0,0.02352141]
[1610077463409,0.1569,38068.0,38067.0,0.13632608]
[1610077463811,0.1569,38068.0,38067.0,0.15984578]
[1610077464211,0.1569,38084.0,38067.0,0.15984578]
[1610077464613,0.1569,38084.0,38068.0,0.02351986]
[1610077465012,3.09816,38078.0,38068.0,0.02351986]
[1610077465411,0.13632608,38069.0,38068.0,0.02351986]
[1610077466214,3.3985,38067.0,38059.0,0.02352224]
[1610077466413,3.49006,38067.0,38059.0,0.00027365]
[1610077466616,3.49006,38067.0,38039.0,3.6282]
[1610077466812,3.49006,38067.0,38060.0,0.02352513]
[1610077467013,3.49006,38067.0,38048.0,0.02352572]
[1610077467215,3.49006,38067.0,38061.0,0.02352592]
[1610077467413,0.13632608,38062.0,38061.0,0.02352592]
[1610077467615,0.13632608,38062.0,38049.0,0.02352602]
[1610077467814,0.58082608,38062.0,38061.0,0.02352697]
[1610077468113,0.58082608,38062.0,38050.0,0.02352743]
[1610077468314,0.58082608,38062.0,38061.0,0.02352761]
[1610077468514,0.58082608,38062.0,38051.0,0.02352928]
[1610077468915,0.13632608,38062.0,38061.0,0.02352933]
[1610077469115,0.13632608,38062.0,38052.0,0.02352919]
[1610077469317,0.09156,38067.0,38061.0,0.02352627]
[1610077469617,0.09156,38067.0,38055.0,0.13632608]
[1610077469819,0.1569,38068.0,38062.0,0.02352157]
[1610077470217,0.1569,38068.0,38056.0,0.02352051]
[1610077470418,0.1569,38068.0,38063.0,0.02352089]
[1610077470618,0.1569,38068.0,38057.0,0.02352035]
[1610077471019,0.1569,38068.0,38064.0,0.02352011]
[1610077471221,0.1569,38068.0,38064.0,0.02324649]
[1610077471421,0.13632608,38065.0,38059.0,0.13632608]
[1610077471920,0.13632608,38065.0,38060.0,0.02352126]
[1610077473322,0.13632608,38061.0,38060.0,0.02352126]
[1610077476427,0.13632608,38061.0,38059.0,0.13632608]
[1610077476625,0.13632608,38061.0,38060.0,0.02352137]
[1610077477526,0.13632608,38061.0,38060.0,0.02352222]
[1610077477729,0.13632608,38061.0,38051.0,0.27095608]
[1610077477925,0.13632608,38061.0,38060.0,0.02352323]
[1610077478126,4.46962608,38061.0,38060.0,0.02352323]
[1610077478327,4.46962608,38061.0,38052.0,0.02352385]
[1610077478528,4.46962608,38061.0,38060.0,0.02352307]
[1610077478726,4.46962608,38061.0,38053.0,0.02352403]
[1610077479127,4.46962608,38061.0,38060.0,0.0235245]
[1610077479329,4.46962608,38061.0,38054.0,0.02352446]
[1610077479528,4.46962608,38061.0,38060.0,0.02352473]
[1610077479829,4.46962608,38061.0,38055.0,0.02352543]
[1610077480028,4.46962608,38061.0,38060.0,0.02352543]
[1610077480429,4.46962608,38061.0,38047.0,0.02352535]
[1610077480631,4.46962608,38061.0,38060.0,0.02352568]
[1610077480828,4.46962608,38061.0,38048.0,0.02352563]
[1610077481028,0.13632608,38061.0,38048.0,0.02352563]
[1610077481228,0.11645,38063.0,38060.0,0.02352461]
[1610077481429,3.82582608,38061.0,38060.0,0.13632608]
[1610077481628,0.13632608,38061.0,38060.0,0.13632608]
[1610077482029,0.13632608,38061.0,38060.0,0.15984718]
[1610077486634,0.13632608,38061.0,38060.0,0.13632608]
[1610077486834,0.13632608,38061.0,38060.0,0.15984448]
[1610077496757,0.13632608,38061.0,38060.0,0.27229448]
[1610077499458,0.13632608,38061.0,38060.0,0.1359684]
[1610077499658,4.24402608,38061.0,38060.0,0.1359684]
[1610077500458,4.24402608,38061.0,38060.0,0.0235184]
[1610077500660,4.24402608,38061.0,38042.0,0.11608]
[1610077500858,4.24402608,38061.0,38040.0,0.12793838]
[1610077501062,4.24402608,38061.0,38043.0,0.02352068]
[1610077501259,4.24402608,38061.0,38041.0,0.02352441]
[1610077501460,4.1077,38061.0,38043.0,0.1351]
[1610077501661,0.1569,38068.0,38044.0,0.0235256]
[1610077501860,3.0831,38045.0,38044.0,0.0235256]
[1610077502661,3.0831,38045.0,38034.0,0.02349335]
[1610077502861,0.08343,38058.0,38044.0,0.02349464]
[1610077503062,0.08343,38058.0,38035.0,0.02349567]
[1610077503464,0.13632608,38036.0,38034.0,0.02349639]
[1610077503663,0.13632608,38036.0,38033.0,0.12672]
[1610077503862,3.8056,38034.0,38023.0,0.13632608]
[1610077504463,3.8056,38034.0,38024.0,0.02349884]
[1610077504662,3.8056,38034.0,38024.0,0.11009884]
[1610077505163,3.8056,38034.0,38025.0,0.02349909]
[1610077505565,0.4764,38051.0,38027.0,0.13632608]
[1610077505965,0.4764,38051.0,38028.0,0.0234974]
[1610077507471,0.4764,38051.0,38038.0,0.13632608]
[1610077507871,0.4764,38051.0,38039.0,0.02349369]
[1610077508668,0.4764,38051.0,38040.0,0.02349239]
[1610077508868,0.4764,38051.0,38040.0,0.00027358]
[1610077509168,0.4764,38051.0,38041.0,0.02349264]
[1610077509368,0.4764,38051.0,38041.0,0.00027359]
[1610077509570,0.13632608,38042.0,38041.0,0.00027359]
[1610077509769,0.5275,38041.0,38039.0,0.0234927]
[1610077509969,0.5275,38041.0,38039.0,0.02321911]
[1610077510169,0.5275,38041.0,38040.0,0.00027358]
[1610077510469,0.5275,38041.0,38039.0,0.02349269]
[1610077510769,0.5275,38041.0,38040.0,0.00027358]
[1610077511271,0.5275,38041.0,38039.0,0.02349269]
[1610077511472,0.5275,38041.0,38040.0,0.00027358]
[1610077512071,0.5275,38041.0,38039.0,0.02349269]
[1610077512272,0.5275,38041.0,38040.0,0.00027358]
[1610077512772,0.4764,38051.0,38039.0,0.02349269]
[1610077513572,0.4764,38051.0,38050.0,0.13632608]
[1610077514174,0.4764,38051.0,38050.0,0.15981543]
[1610077514977,0.4764,38051.0,38050.0,0.15954188]
[1610077515175,0.4764,38051.0,38050.0,0.15981543]
[1610077515576,0.61272608,38051.0,38050.0,0.15981543]
[1610077520582,0.61272608,38051.0,38050.0,0.02348935]
[1610077520784,4.17102608,38051.0,38050.0,0.02348935]
[1610077520983,4.17102608,38051.0,38047.0,0.02348949]
[1610077521184,4.17102608,38051.0,38050.0,0.02349175]
[1610077521383,4.17102608,38051.0,38048.0,0.02349259]
[1610077521785,4.17102608,38051.0,38039.0,0.02349364]
[1610077521983,4.17102608,38051.0,38049.0,0.02349566]
[1610077522184,0.45582608,38051.0,38040.0,0.02349549]
[1610077522383,4.3776,38050.0,38040.0,0.02349549]
[1610077522584,4.3776,38050.0,38039.0,0.0234962]
[1610077522783,4.3776,38050.0,38041.0,0.02349682]
[1610077522985,4.3776,38050.0,38040.0,0.02349693]
[1610077523384,4.3776,38050.0,38039.0,0.02349867]
[1610077523583,4.3776,38050.0,38041.0,0.02349916]
[1610077523784,4.3776,38050.0,38040.0,0.02349951]
[1610077524084,4.3776,38050.0,38042.0,0.02350077]
[1610077524284,4.3776,38050.0,38041.0,0.02350126]
[1610077524485,0.3195,38051.0,38041.0,0.02350126]
[1610077524684,0.3195,38051.0,38025.0,0.02350124]
[1610077524884,0.3195,38051.0,38042.0,0.02349679]
[1610077525084,0.3195,38051.0,38026.0,0.02349647]
[1610077525285,4.0476,38041.0,38032.0,0.10244]
[1610077525685,0.13632608,38033.0,38032.0,0.10244]
[1610077526085,4.37102608,38033.0,38032.0,0.10244]
[1610077526286,4.37102608,38033.0,38032.0,0.02349507]
[1610077526685,4.37102608,38033.0,38025.0,0.02349566]
[1610077526888,0.13632608,38033.0,38025.0,0.02349566]
[1610077527086,3.99522608,38033.0,38032.0,0.02349598]
[1610077527285,3.99522608,38033.0,38026.0,0.02349563]
[1610077527484,3.99522608,38033.0,38032.0,0.02349596]
[1610077527685,3.99522608,38033.0,38024.0,0.0866]
[1610077527686,3.99522608,38033.0,38005.0,0.12788886]
[1610077527885,0.1569,38032.0,38017.0,0.10568]
[1610077528287,0.1569,38032.0,38018.0,0.02349761]
[1610077528887,0.1569,38032.0,37991.0,0.1279098]
[1610077529085,4.0269,38018.0,37996.0,0.10613]
[1610077529286,1.61403,38018.0,37989.0,0.15116422]
[1610077529486,4.1481,37997.0,37989.0,0.15143798]
[1610077529689,4.1481,37997.0,37989.0,0.12793391]
[1610077529690,0.13632608,37990.0,37989.0,0.12793391]
[1610077529885,3.24302608,37990.0,37986.0,0.12799008]
[1610077530086,3.24302608,37990.0,37989.0,0.023517]
[1610077530287,0.22323608,37990.0,37989.0,0.023517]
[1610077530487,3.89723608,37990.0,37987.0,0.02352287]
[1610077530687,3.89723608,37990.0,37972.0,0.12314]
[1610077530887,3.89723608,37990.0,37988.0,0.02352401]
[1610077531086,3.89723608,37990.0,37948.0,0.12804412]
[1610077531288,3.89723608,37990.0,37964.0,0.09753]
[1610077531487,0.22323608,37990.0,37964.0,0.09753]
[1610077531688,0.13632608,37965.0,37964.0,0.09753]
[1610077532289,0.13632608,37965.0,37964.0,0.12105881]
[1610077533989,3.21152608,37965.0,37964.0,0.12105881]
[1610077534591,3.21152608,37965.0,37964.0,0.09753]
[1610077534792,3.21152608,37965.0,37964.0,0.12105842]
[1610077535190,3.21152608,37965.0,37964.0,0.14458737]
[1610077536691,3.21152608,37965.0,37964.0,0.12105842]
[1610077536890,3.21152608,37965.0,37964.0,0.14458749]
[1610077537090,0.13632608,37965.0,37964.0,0.14458749]
[1610077539895,0.13158,37974.0,37964.0,0.14458749]
[1610077540296,0.09795,37982.0,37965.0,0.02351315]
[1610077540498,0.274,37989.0,37965.0,0.02351315]
[1610077540697,4.1549,37999.0,37965.0,0.02351315]
[1610077541699,0.13632608,37966.0,37965.0,0.02351315]
[1610077547603,0.13632608,37966.0,37965.0,0.15983923]
[1610077547804,0.09336,37992.0,37965.0,0.15983923]
[1610077548203,3.2285,38004.0,37966.0,0.02350837]
[1610077548405,0.4764,37999.0,37966.0,0.02350837]
[1610077549607,0.4764,37999.0,37971.0,0.13632608]
[1610077549805,0.4764,37999.0,37966.0,0.02350837]
[1610077550004,0.4764,37999.0,37972.0,0.02350623]
[1610077550507,0.4764,37999.0,37973.0,0.02350625]
[1610077550804,0.4764,37999.0,37966.0,0.02350677]
[1610077551206,0.4764,37999.0,37974.0,0.02350761]
[1610077551406,0.4764,37999.0,37967.0,0.02350806]
[1610077551607,0.4764,37999.0,37975.0,0.02350979]
[1610077552006,0.4764,37999.0,37968.0,0.02351077]
[1610077552208,0.4764,37999.0,37976.0,0.023512]
[1610077552408,0.4764,37999.0,37969.0,0.0235123]
[1610077552608,0.4764,37999.0,37977.0,0.02323779]
[1610077552809,0.4764,37999.0,37977.0,0.02351181]
[1610077553009,0.4764,37999.0,37970.0,0.12812]
[1610077553209,0.4764,37999.0,37978.0,0.02350998]
[1610077553409,0.4764,37999.0,37971.0,0.02350962]
[1610077553611,0.13632608,37972.0,37971.0,0.02350962]
[1610077553810,0.13632608,37972.0,37970.0,0.12812]
[1610077554010,0.13632608,37972.0,37971.0,0.02350867]
[1610077555614,0.13632608,37972.0,37965.0,0.02351129]
[1610077555811,0.13632608,37972.0,37971.0,0.02351129]
[1610077556012,0.13632608,37972.0,37971.0,0.00027401]
[1610077556212,0.13632608,37972.0,37966.0,0.02351141]
[1610077556412,0.13632608,37972.0,37971.0,0.00027401]
[1610077556614,0.13632608,37972.0,37967.0,0.0235117]
[1610077556814,0.13632608,37972.0,37951.0,0.12801102]
[1610077557214,0.13632608,37972.0,37958.0,0.02351236]
[1610077557614,0.13632608,37959.0,37957.0,0.12686]
[1610077558015,0.13632608,37959.0,37958.0,0.023515]
[1610077558219,0.13632608,37959.0,37934.0,0.12803226]
[1610077558814,0.13632608,37959.0,37949.0,0.02351633]
[1610077559015,0.13632608,37959.0,37934.0,0.12803226]
[1610077559016,0.13632608,37959.0,37947.0,0.13158]
[1610077559216,0.13632608,37959.0,37950.0,0.02351664]
[1610077559415,0.13632608,37959.0,37947.0,0.13158]
[1610077559615,0.13632608,37948.0,37947.0,0.13158]
[1610077560016,0.13632608,37948.0,37947.0,0.15509725]
[1610077563220,0.13632608,37948.0,37926.0,0.1280512]
[1610077563820,4.0351,37949.0,37908.0,3.1935]
[1610077563821,0.13632608,37927.0,37921.0,0.13632608]
[1610077564221,0.13632608,37927.0,37922.0,0.02024476]
[1610077564621,0.13632608,37927.0,37922.0,0.09975]
[1610077564823,0.13632608,37927.0,37923.0,0.02024732]
[1610077565723,0.13632608,37927.0,37926.0,0.13632608]
[1610077566123,0.13632608,37927.0,37926.0,0.02024603]
[1610077566523,0.13632608,37927.0,37923.0,0.02024544]
[1610077568927,0.13632608,37927.0,37922.0,0.09975]
[1610077569225,0.13632608,37927.0,37924.0,0.02024766]
[1610077569426,0.13632608,37927.0,37923.0,0.02024762]
[1610077569727,0.13632608,37927.0,37925.0,0.02024829]
[1610077569929,0.13632608,37927.0,37924.0,0.02024829]
[1610077570229,0.13632608,37927.0,37923.0,0.02024836]
[1610077570631,0.13632608,37927.0,37925.0,0.02025371]
[1610077570829,0.13632608,37927.0,37924.0,0.02025368]
[1610077571032,0.13632608,37927.0,37926.0,0.02025352]
[1610077571430,0.13632608,37927.0,37925.0,0.02025447]
[1610077571629,0.13632608,37927.0,37926.0,0.02025445]
[1610077572130,0.63832608,37927.0,37923.0,0.02025605]
[1610077572330,0.13632608,37927.0,37926.0,0.02025776]
[1610077572531,4.27112608,37927.0,37926.0,0.02025776]
[1610077572730,4.27112608,37927.0,37924.0,0.02025812]
[1610077572931,4.27112608,37927.0,37926.0,0.020259]
[1610077573130,4.27112608,37927.0,37925.0,0.02025768]
[1610077573532,4.27112608,37927.0,37926.0,0.02025657]
[1610077573930,4.27112608,37927.0,37923.0,0.02025727]
[1610077574131,4.27112608,37927.0,37926.0,0.01998774]
[1610077574333,4.27112608,37927.0,37926.0,0.02025585]
[1610077574533,0.13632608,37927.0,37923.0,0.02025639]
[1610077574732,0.13632608,37927.0,37926.0,0.02025556]
[1610077574932,0.13632608,37927.0,37924.0,0.02025456]
[1610077575333,0.13632608,37927.0,37923.0,0.02025378]
[1610077575533,0.13632608,37927.0,37925.0,0.02025388]
[1610077575732,0.13632608,37927.0,37925.0,0.13632608]
[1610077576134,0.1569,37942.0,37926.0,0.02025358]
[1610077576333,0.1569,37942.0,37928.0,3.8961]
[1610077576733,0.3195,37951.0,37928.0,3.8961]
[1610077576933,0.3195,37951.0,37929.0,0.13992316]
[1610077577134,0.4764,37982.0,37943.0,3.9977]
[1610077577336,0.4764,37982.0,37943.0,4.11807]
[1610077577534,0.4764,37982.0,37944.0,0.13962142]
[1610077577735,0.3195,37982.0,37971.0,0.13632608]
[1610077578137,0.3195,37982.0,37972.0,0.02024288]
[1610077578336,0.1569,38000.0,37972.0,0.02024288]
[1610077579138,1.5809,38002.0,37972.0,0.02024288]
[1610077579738,0.3195,38013.0,37996.0,0.13632608]
[1610077580338,0.3195,38013.0,37997.0,0.02023802]
[1610077581241,0.3195,38013.0,37995.0,0.02023617]
[1610077581443,0.5947,38007.0,37971.0,0.11812]
[1610077581842,0.13632608,37972.0,37971.0,0.11812]
[1610077582442,0.13632608,37972.0,37971.0,0.13836014]
[1610077586846,0.13632608,37972.0,37971.0,0.11812]
[1610077587044,0.13632608,37972.0,37971.0,0.02024203]
[1610077587447,0.13632608,37972.0,37971.0,0.10923203]
[1610077587647,0.13632608,37972.0,37971.0,0.08899]
[1610077587849,0.13632608,37972.0,37971.0,0.10923141]
[1610077595858,0.3195,37989.0,37971.0,0.24555749]
[1610077596058,0.3195,37989.0,37972.0,0.13632608]
[1610077596258,0.3195,37989.0,37971.0,0.24555749]
[1610077596459,0.3195,37989.0,37973.0,0.02023763]
[1610077596858,0.3195,37989.0,37972.0,0.02023637]
[1610077597058,0.3195,37989.0,37974.0,0.02023622]
[1610077597258,0.3195,37989.0,37973.0,0.02023552]
[1610077597458,0.3195,37989.0,37975.0,0.00026782]
[1610077597658,0.3195,37989.0,37975.0,0.0202351]
[1610077597861,0.3195,37989.0,37988.0,0.13632608]
[1610077598059,0.3195,37989.0,37988.0,0.26299608]
[1610077598258,0.3195,37989.0,37988.0,0.28323072]
[1610077598758,0.3195,37989.0,37988.0,0.14690464]
[1610077598961,0.1569,37997.0,37988.0,0.14690464]
[1610077599361,0.1569,37997.0,37989.0,0.02023687]
[1610077599760,0.13632608,37990.0,37989.0,0.02023687]
[1610077599960,0.13632608,37990.0,37972.0,0.02023903]
[1610077600159,0.13632608,37990.0,37989.0,0.0202399]
[1610077600360,0.13632608,37990.0,37973.0,0.0202413]
[1610077600759,0.13632608,37990.0,37971.0,0.08899]
[1610077600760,0.13632608,37990.0,37972.0,0.02024204]
[1610077600959,0.13632608,37990.0,37974.0,0.02024161]
[1610077601160,0.13632608,37990.0,37973.0,0.02024149]
[1610077601460,0.13632608,37990.0,37975.0,0.02024012]
[1610077601660,0.13632608,37990.0,37975.0,0.01997223]
[1610077601859,0.08625,37994.0,37978.0,0.13632608]
[1610077602059,0.1569,37997.0,37978.0,0.13632608]
[1610077602260,0.1569,37997.0,37979.0,0.02023717]
[1610077602460,0.1569,37997.0,37979.0,0.10586717]
[1610077602861,0.1569,37997.0,37980.0,0.02023582]
[1610077603762,0.1569,37997.0,37989.0,0.13632608]
[1610077604163,0.1569,37997.0,37990.0,0.02023482]
[1610077605066,0.1569,37997.0,37980.0,0.02023881]
[1610077605466,0.25567,37997.0,37980.0,0.02023881]
[1610077605767,0.13632608,37981.0,37980.0,0.02023881]
[1610077607268,0.1569,37997.0,37980.0,0.02023881]
[1610077607669,0.1569,37997.0,37981.0,3.3996]
[1610077607869,0.13632608,37989.0,37987.0,0.13632608]
[1610077608270,0.13632608,37989.0,37988.0,0.02023396]
[1610077608672,0.13632608,37989.0,37988.0,0.13809396]
[1610077612079,0.13632608,37989.0,37964.0,0.11961181]
[1610077612480,0.24283608,37989.0,37972.0,0.02024372]
[1610077613081,0.24283608,37989.0,37966.0,0.02024531]
[1610077613281,0.24283608,37989.0,37973.0,0.02024601]
[1610077613482,0.24283608,37989.0,37967.0,0.02024589]
[1610077613682,0.24283608,37989.0,37969.0,3.4941]
[1610077613882,0.10651,37989.0,37974.0,0.02024461]
[1610077614082,0.10651,37989.0,37970.0,0.13988262]
[1610077614282,0.10651,37989.0,37975.0,0.02024361]
[1610077614486,0.10651,37989.0,37971.0,0.02024199]
[1610077614684,0.10651,37989.0,37973.0,0.1123]
[1610077615084,0.10651,37989.0,37974.0,0.02024021]
[1610077615486,0.1569,37997.0,37974.0,0.02024021]
[1610077615884,0.1569,37997.0,37988.0,0.13632608]
[1610077616487,0.1569,37997.0,37989.0,0.02023684]
[1610077617886,0.13632608,37990.0,37989.0,0.02023684]
[1610077618286,0.13632608,37990.0,37984.0,0.02023457]
[1610077618489,0.13632608,37990.0,37989.0,0.02023486]
[1610077618687,0.13632608,37990.0,37985.0,0.02023475]
[1610077619087,0.13632608,37990.0,37984.0,0.02023492]
[1610077619289,0.13632608,37990.0,37986.0,0.02023553]
[1610077619487,0.13632608,37990.0,37985.0,0.02023572]
[1610077619888,0.13632608,37986.0,37984.0,0.0202354]
[1610077620089,0.1569,37997.0,37983.0,0.08342]
[1610077620289,0.1569,37997.0,37985.0,0.02023494]
[1610077620689,0.1569,37997.0,37984.0,0.02023472]
[1610077620890,0.1569,37997.0,37986.0,0.02023488]
[1610077621090,0.1569,37997.0,37985.0,0.02023463]
[1610077621489,0.1569,37997.0,37987.0,0.02023239]
[1610077621690,0.1569,37997.0,37986.0,0.0202323]
[1610077621891,0.1569,37997.0,37993.0,0.13632608]
[1610077622090,0.5947,38007.0,37988.0,0.02023233]
[1610077622291,0.5947,38007.0,37987.0,0.02045453]
[1610077622492,0.5947,38007.0,37989.0,0.02045405]
[1610077622691,0.5947,38007.0,37988.0,0.02045375]
[1610077622892,0.5947,38007.0,37990.0,0.02045353]
[1610077623292,0.5947,38007.0,37985.0,0.06632685]
[1610077623492,0.5947,38007.0,37991.0,0.02045379]
[1610077623693,0.5947,38007.0,37991.0,0.13234]
[1610077623892,0.13632608,37992.0,37991.0,0.13234]